[Event "Titled Tuesday Blitz November 15 Late 2022"]
[White "Castella Garcia, Fausto"]
[Black "Arbunic Castro, Giovanna"]
[WhiteFideId "3501922"]
[BlackFideId "3400549"]
[WhiteElo "2245"]
[BlackElo "1953"]
[Result "1-0"]
[Round "07"]
[TimeControl "180+1"]
[Date "2022.11.16"]
[WhiteClock "0:00:40"]
[BlackClock "0:00:01"]

1. e4 {[%clk 0:03:00]}  g6 {[%clk 0:02:58]} 2. d4 {[%clk 0:03:00]}  Bg7 {[%clk 0:02:57]} 3. Nc3 {[%clk 0:02:58]}  c5 {[%clk 0:02:57]} 4. dxc5 {[%clk 0:02:58]}  Qa5 {[%clk 0:02:56]} 5. Nf3 {[%clk 0:02:52]}  Nf6 {[%clk 0:02:48]} 6. Bd3 {[%clk 0:02:50]}  Qxc5 {[%clk 0:02:44]} 7. O-O {[%clk 0:02:50]}  O-O {[%clk 0:02:42]} 8. Be3 {[%clk 0:02:36]}  Qb4 {[%clk 0:02:34]} 9. Qd2 {[%clk 0:02:34]}  Nc6 {[%clk 0:02:29]} 10. h3 {[%clk 0:02:27]}  Qxb2 {[%clk 0:02:12]} 11. e5 {[%clk 0:01:48]}  Ne8 {[%clk 0:01:41]} 12. Rab1 {[%clk 0:01:46]}  Qa3 {[%clk 0:01:32]} 13. Rb3 {[%clk 0:01:46]}  Qa5 {[%clk 0:01:27]} 14. Rb5 {[%clk 0:01:46]}  Qd8 {[%clk 0:01:20]} 15. Bf4 {[%clk 0:01:41]}  a6 {[%clk 0:01:13]} 16. Rbb1 {[%clk 0:01:36]}  b5 {[%clk 0:01:11]} 17. Be4 {[%clk 0:01:34]}  Bb7 {[%clk 0:01:09]} 18. Rfd1 {[%clk 0:01:34]}  d6 {[%clk 0:01:03]} 19. Qe3 {[%clk 0:01:23]}  Qc7 {[%clk 0:00:59]} 20. Nd5 {[%clk 0:01:22]}  Qd8 {[%clk 0:00:47]} 21. exd6 {[%clk 0:01:19]}  Nxd6 {[%clk 0:00:46]} 22. Nxe7+ {[%clk 0:01:20]}  Qxe7 {[%clk 0:00:36]} 23. Bxd6 {[%clk 0:01:19]}  Qe6 {[%clk 0:00:32]} 24. Bxf8 {[%clk 0:01:15]}  Rxf8 {[%clk 0:00:29]} 25. Qb6 {[%clk 0:01:10]}  Ba8 {[%clk 0:00:19]} 26. Bd5 {[%clk 0:01:08]}  Qf6 {[%clk 0:00:15]} 27. c4 {[%clk 0:01:01]}  Rb8 {[%clk 0:00:12]} 28. Qxa6 {[%clk 0:00:55]}  Ne5 {[%clk 0:00:08]} 29. Qxf6 {[%clk 0:00:48]}  Bxf6 {[%clk 0:00:07]} 30. Nxe5 {[%clk 0:00:47]}  Bxe5 {[%clk 0:00:06]} 31. Rxb5 {[%clk 0:00:47]}  Bxd5 {[%clk 0:00:05]} 32. Rxb8+ {[%clk 0:00:46]}  Bxb8 {[%clk 0:00:03]} 33. cxd5 {[%clk 0:00:46]}  Bd6 {[%clk 0:00:04]} 34. a4 {[%clk 0:00:47]}  f5 {[%clk 0:00:03]} 35. a5 {[%clk 0:00:46]}  Kf8 {[%clk 0:00:03]} 36. a6 {[%clk 0:00:43]}  Bb8 {[%clk 0:00:02]} 37. Rb1 {[%clk 0:00:42]}  Ba7 {[%clk 0:00:01]} 38. Rb7 {[%clk 0:00:40]} 1-0


[Site "https://www.chess.com"]

[Event "Titled Tuesday Blitz November 15 Late 2022"]
[White "Chirilov, James A"]
[Black "Salman, Pavel"]
[WhiteFideId "30976677"]
[BlackFideId "24153753"]
[WhiteElo "1790"]
[BlackElo "2187"]
[Result "0-1"]
[Round "07"]
[TimeControl "180+1"]
[Date "2022.11.16"]
[WhiteClock "0:00:04"]
[BlackClock "0:00:06"]

1. e4 {[%clk 0:03:00]}  c5 {[%clk 0:02:59]} 2. Nf3 {[%clk 0:03:00]}  e6 {[%clk 0:02:59]} 3. d4 {[%clk 0:03:01]}  cxd4 {[%clk 0:03:00]} 4. Nxd4 {[%clk 0:03:01]}  a6 {[%clk 0:03:01]} 5. Nc3 {[%clk 0:02:59]}  Qc7 {[%clk 0:03:01]} 6. g3 {[%clk 0:02:54]}  Nf6 {[%clk 0:02:59]} 7. Bg2 {[%clk 0:02:54]}  d6 {[%clk 0:02:59]} 8. O-O {[%clk 0:02:54]}  Be7 {[%clk 0:03:00]} 9. Be3 {[%clk 0:02:54]}  O-O {[%clk 0:03:00]} 10. Qe2 {[%clk 0:02:51]}  Nc6 {[%clk 0:03:00]} 11. Rad1 {[%clk 0:02:50]}  Bd7 {[%clk 0:02:57]} 12. f4 {[%clk 0:02:44]}  Nxd4 {[%clk 0:02:52]} 13. Bxd4 {[%clk 0:02:43]}  e5 {[%clk 0:02:52]} 14. Be3 {[%clk 0:02:35]}  Bg4 {[%clk 0:02:45]} 15. Bf3 {[%clk 0:02:33]}  Bxf3 {[%clk 0:02:45]} 16. Qxf3 {[%clk 0:02:34]}  exf4 {[%clk 0:02:36]} 17. gxf4 {[%clk 0:02:25]}  Qc4 {[%clk 0:02:23]} 18. Bd4 {[%clk 0:02:05]}  Rae8 {[%clk 0:02:15]} 19. Kh1 {[%clk 0:02:04]}  Kh8 {[%clk 0:02:01]} 20. Rg1 {[%clk 0:02:04]}  Rg8 {[%clk 0:01:54]} 21. e5 {[%clk 0:01:44]}  dxe5 {[%clk 0:01:51]} 22. fxe5 {[%clk 0:01:45]}  Nd7 {[%clk 0:01:35]} 23. Nd5 {[%clk 0:01:00]}  Qc6 {[%clk 0:01:24]} 24. c4 {[%clk 0:00:57]}  Bc5 {[%clk 0:01:17]} 25. Bxc5 {[%clk 0:00:32]}  Qxc5 {[%clk 0:01:17]} 26. Qxf7 {[%clk 0:00:31]}  Nxe5 {[%clk 0:01:16]} 27. Qxb7 {[%clk 0:00:27]}  Qxc4 {[%clk 0:01:04]} 28. Nc3 {[%clk 0:00:21]}  Ng4 {[%clk 0:00:48]} 29. Rdf1 {[%clk 0:00:15]}  Re6 {[%clk 0:00:25]} 30. Qf3 {[%clk 0:00:14]}  Rf6 {[%clk 0:00:18]} 31. Qe2 {[%clk 0:00:07]}  Qxe2 {[%clk 0:00:15]} 32. Nxe2 {[%clk 0:00:08]}  Nf2+ {[%clk 0:00:11]} 33. Kg2 {[%clk 0:00:08]}  Ne4 {[%clk 0:00:11]} 34. Ng3 {[%clk 0:00:06]}  Nxg3 {[%clk 0:00:08]} 35. hxg3 {[%clk 0:00:07]}  Rb6 {[%clk 0:00:07]} 36. Rf2 {[%clk 0:00:07]}  Rgb8 {[%clk 0:00:08]} 37. b3 {[%clk 0:00:08]}  h6 {[%clk 0:00:08]} 38. Rc1 {[%clk 0:00:08]}  Kh7 {[%clk 0:00:08]} 39. Rc7 {[%clk 0:00:09]}  Rg6 {[%clk 0:00:08]} 40. Rff7 {[%clk 0:00:08]}  Rb5 {[%clk 0:00:08]} 41. Kf3 {[%clk 0:00:08]}  Rbg5 {[%clk 0:00:07]} 42. b4 {[%clk 0:00:05]}  Rxg3+ {[%clk 0:00:07]} 43. Kf2 {[%clk 0:00:04]}  Rg2+ {[%clk 0:00:07]} 44. Kf3 {[%clk 0:00:05]}  Rxa2 {[%clk 0:00:07]} 45. Ke4 {[%clk 0:00:05]}  Ra4 {[%clk 0:00:08]} 46. Rb7 {[%clk 0:00:06]}  a5 {[%clk 0:00:08]} 47. Kf5 {[%clk 0:00:05]}  Rxb4 {[%clk 0:00:07]} 48. Rxb4 {[%clk 0:00:06]}  axb4 {[%clk 0:00:07]} 49. Rb7 {[%clk 0:00:07]}  Rf6+ {[%clk 0:00:06]} 50. Ke5 {[%clk 0:00:07]}  h5 {[%clk 0:00:06]} 51. Rxb4 {[%clk 0:00:07]}  Rg6 {[%clk 0:00:06]} 52. Kf5 {[%clk 0:00:07]}  Kh6 {[%clk 0:00:06]} 53. Rb8 {[%clk 0:00:07]}  Rf6+ {[%clk 0:00:06]} 54. Ke4 {[%clk 0:00:05]}  Kg5 {[%clk 0:00:07]} 55. Rh8 {[%clk 0:00:05]}  g6 {[%clk 0:00:07]} 56. Ke5 {[%clk 0:00:05]}  Rf5+ {[%clk 0:00:07]} 57. Ke4 {[%clk 0:00:06]}  Kg4 {[%clk 0:00:08]} 58. Ke3 {[%clk 0:00:05]}  h4 {[%clk 0:00:08]} 59. Rh7 {[%clk 0:00:06]}  g5 {[%clk 0:00:06]} 60. Ke2 {[%clk 0:00:06]}  Kg3 {[%clk 0:00:06]} 61. Ke3 {[%clk 0:00:06]}  h3 {[%clk 0:00:05]} 62. Ke4 {[%clk 0:00:07]}  Rf4+ {[%clk 0:00:05]} 63. Ke5 {[%clk 0:00:08]}  h2 {[%clk 0:00:05]} 64. Rh5 {[%clk 0:00:08]}  g4 {[%clk 0:00:05]} 65. Rh8 {[%clk 0:00:04]}  Rf3 {[%clk 0:00:06]} 66. Ke4 {[%clk 0:00:05]}  Kg2 {[%clk 0:00:05]} 67. Rh4 {[%clk 0:00:05]}  g3 {[%clk 0:00:05]} 68. Rh8 {[%clk 0:00:04]}  Rf2 {[%clk 0:00:05]} 69. Ke3 {[%clk 0:00:04]}  h1=Q {[%clk 0:00:06]} 0-1


[Site "https://www.chess.com"]

[Event "Titled Tuesday Blitz November 15 Late 2022"]
[White "Curtis, John"]
[Black "Melian, Juan Sebastian"]
[WhiteFideId "3200256"]
[BlackFideId "3706575"]
[WhiteElo "2203"]
[BlackElo "2044"]
[Result "0-1"]
[Round "07"]
[TimeControl "180+1"]
[Date "2022.11.16"]
[WhiteClock "0:00:04"]
[BlackClock "0:00:19"]

1. e4 {[%clk 0:03:00]}  c6 {[%clk 0:02:56]} 2. d4 {[%clk 0:02:59]}  d5 {[%clk 0:02:57]} 3. exd5 {[%clk 0:03:00]}  cxd5 {[%clk 0:02:58]} 4. c4 {[%clk 0:03:00]}  Nf6 {[%clk 0:02:58]} 5. Nc3 {[%clk 0:02:55]}  e6 {[%clk 0:02:58]} 6. cxd5 {[%clk 0:02:53]}  Nxd5 {[%clk 0:02:57]} 7. Bc4 {[%clk 0:02:53]}  Nxc3 {[%clk 0:02:55]} 8. bxc3 {[%clk 0:02:53]}  Qc7 {[%clk 0:02:55]} 9. Qb3 {[%clk 0:02:47]}  Nd7 {[%clk 0:02:41]} 10. Nf3 {[%clk 0:02:46]}  Bd6 {[%clk 0:02:41]} 11. O-O {[%clk 0:02:37]}  O-O {[%clk 0:02:40]} 12. Bd3 {[%clk 0:02:22]}  Re8 {[%clk 0:02:20]} 13. c4 {[%clk 0:02:09]}  b6 {[%clk 0:02:18]} 14. Be4 {[%clk 0:02:08]}  Bb7 {[%clk 0:02:17]} 15. Bxb7 {[%clk 0:02:09]}  Qxb7 {[%clk 0:02:17]} 16. c5 {[%clk 0:02:09]}  Be7 {[%clk 0:02:10]} 17. Bg5 {[%clk 0:02:01]}  Bxg5 {[%clk 0:02:05]} 18. Nxg5 {[%clk 0:02:01]}  Nf6 {[%clk 0:01:43]} 19. Rfb1 {[%clk 0:01:50]}  Rab8 {[%clk 0:01:39]} 20. cxb6 {[%clk 0:01:45]}  axb6 {[%clk 0:01:40]} 21. a4 {[%clk 0:01:37]}  Qc6 {[%clk 0:01:40]} 22. Nf3 {[%clk 0:01:34]}  h6 {[%clk 0:01:29]} 23. h3 {[%clk 0:01:21]}  Red8 {[%clk 0:01:28]} 24. Rc1 {[%clk 0:01:14]}  Qe4 {[%clk 0:01:25]} 25. Rab1 {[%clk 0:00:58]}  Nd5 {[%clk 0:01:23]} 26. Qc2 {[%clk 0:00:52]}  Qxc2 {[%clk 0:01:20]} 27. Rxc2 {[%clk 0:00:52]}  Ra8 {[%clk 0:01:21]} 28. Rc4 {[%clk 0:00:49]}  Ra5 {[%clk 0:01:13]} 29. g3 {[%clk 0:00:44]}  Rda8 {[%clk 0:01:13]} 30. Ne5 {[%clk 0:00:40]}  Rxa4 {[%clk 0:01:11]} 31. Rxa4 {[%clk 0:00:36]}  Rxa4 {[%clk 0:01:12]} 32. Rc1 {[%clk 0:00:36]}  f6 {[%clk 0:01:07]} 33. Rc8+ {[%clk 0:00:35]}  Kh7 {[%clk 0:01:07]} 34. Nd7 {[%clk 0:00:35]}  Kg6 {[%clk 0:01:08]} 35. Rc6 {[%clk 0:00:31]}  Rxd4 {[%clk 0:00:58]} 36. Nxb6 {[%clk 0:00:19]}  e5 {[%clk 0:00:19]} 37. Nxd5 {[%clk 0:00:08]}  Rxd5 {[%clk 0:00:19]} 38. Rc2 {[%clk 0:00:08]}  h5 {[%clk 0:00:19]} 39. h4 {[%clk 0:00:08]}  Kf5 {[%clk 0:00:19]} 40. Kg2 {[%clk 0:00:08]}  Rd4 {[%clk 0:00:18]} 41. Ra2 {[%clk 0:00:08]}  Rd3 {[%clk 0:00:19]} 42. Rb2 {[%clk 0:00:08]}  Rc3 {[%clk 0:00:19]} 43. Ra2 {[%clk 0:00:08]}  Rb3 {[%clk 0:00:19]} 44. Re2 {[%clk 0:00:08]}  Kg4 {[%clk 0:00:16]} 45. Rd2 {[%clk 0:00:09]}  Kf5 {[%clk 0:00:15]} 46. Rd7 {[%clk 0:00:08]}  g6 {[%clk 0:00:14]} 47. Rd2 {[%clk 0:00:08]}  Ra3 {[%clk 0:00:15]} 48. Re2 {[%clk 0:00:08]}  Ke6 {[%clk 0:00:15]} 49. f3 {[%clk 0:00:08]}  Kf5 {[%clk 0:00:16]} 50. Kf2 {[%clk 0:00:08]}  Ra4 {[%clk 0:00:16]} 51. Rc2 {[%clk 0:00:08]}  Ra3 {[%clk 0:00:14]} 52. Rc6 {[%clk 0:00:08]}  Ra2+ {[%clk 0:00:13]} 53. Ke3 {[%clk 0:00:09]}  Rg2 {[%clk 0:00:13]} 54. g4+ {[%clk 0:00:08]}  hxg4 {[%clk 0:00:13]} 55. h5 {[%clk 0:00:05]}  gxh5 {[%clk 0:00:12]} 56. fxg4+ {[%clk 0:00:06]}  hxg4 {[%clk 0:00:11]} 57. Rc7 {[%clk 0:00:03]}  Rg3+ {[%clk 0:00:12]} 58. Ke2 {[%clk 0:00:02]}  Rf3 {[%clk 0:00:12]} 59. Rh7 {[%clk 0:00:03]}  Rf4 {[%clk 0:00:13]} 60. Rh5+ {[%clk 0:00:03]}  Ke4 {[%clk 0:00:13]} 61. Rh8 {[%clk 0:00:04]}  g3 {[%clk 0:00:11]} 62. Rg8 {[%clk 0:00:05]}  Rf2+ {[%clk 0:00:11]} 63. Ke1 {[%clk 0:00:05]}  Kf3 {[%clk 0:00:11]} 64. Rg6 {[%clk 0:00:04]}  f5 {[%clk 0:00:11]} 65. Rg5 {[%clk 0:00:04]}  f4 {[%clk 0:00:11]} 66. Rxe5 {[%clk 0:00:04]}  Kg2 {[%clk 0:00:12]} 67. Rg5 {[%clk 0:00:04]}  f3 {[%clk 0:00:12]} 68. Rg4 {[%clk 0:00:04]}  Re2+ {[%clk 0:00:13]} 69. Kd1 {[%clk 0:00:03]}  Re8 {[%clk 0:00:14]} 70. Re4 {[%clk 0:00:03]}  Rxe4 {[%clk 0:00:13]} 71. Kd2 {[%clk 0:00:03]}  f2 {[%clk 0:00:14]} 72. Kd3 {[%clk 0:00:04]}  Re8 {[%clk 0:00:14]} 73. Kd4 {[%clk 0:00:05]}  f1=Q {[%clk 0:00:15]} 74. Kd5 {[%clk 0:00:05]}  Qd1+ {[%clk 0:00:15]} 75. Kc6 {[%clk 0:00:04]}  Rc8+ {[%clk 0:00:16]} 76. Kb7 {[%clk 0:00:05]}  Qd7+ {[%clk 0:00:15]} 77. Kb6 {[%clk 0:00:04]}  Qc6+ {[%clk 0:00:15]} 78. Ka5 {[%clk 0:00:02]}  Ra8+ {[%clk 0:00:16]} 79. Kb4 {[%clk 0:00:03]}  Ra4+ {[%clk 0:00:17]} 80. Kb3 {[%clk 0:00:03]}  Qc4+ {[%clk 0:00:17]} 81. Kb2 {[%clk 0:00:03]}  Ra2+ {[%clk 0:00:18]} 82. Kb1 {[%clk 0:00:04]}  Qc2# {[%clk 0:00:19]} 0-1


[Site "https://www.chess.com"]

[Event "Titled Tuesday Blitz November 15 Late 2022"]
[White "Deac, Bogdan-Daniel"]
[Black "Zhalmakhanov, Ramazan"]
[WhiteFideId "1226380"]
[BlackFideId "13706357"]
[WhiteElo "2648"]
[BlackElo "2405"]
[Result "0-1"]
[Round "07"]
[TimeControl "180+1"]
[Date "2022.11.15"]
[WhiteClock "0:00:01"]
[BlackClock "0:00:02"]

1. Nf3 {[%clk 0:03:00]}  d5 {[%clk 0:02:57]} 2. e3 {[%clk 0:03:00]}  Nf6 {[%clk 0:02:55]} 3. c4 {[%clk 0:03:01]}  e6 {[%clk 0:02:49]} 4. b3 {[%clk 0:02:59]}  Be7 {[%clk 0:02:47]} 5. Bb2 {[%clk 0:02:59]}  O-O {[%clk 0:02:47]} 6. g3 {[%clk 0:02:59]}  c5 {[%clk 0:02:46]} 7. Bg2 {[%clk 0:02:59]}  Nc6 {[%clk 0:02:47]} 8. O-O {[%clk 0:02:58]}  b6 {[%clk 0:02:43]} 9. Qe2 {[%clk 0:02:56]}  Bb7 {[%clk 0:02:41]} 10. Ne1 {[%clk 0:02:54]}  dxc4 {[%clk 0:02:39]} 11. bxc4 {[%clk 0:02:53]}  Qc8 {[%clk 0:02:33]} 12. f4 {[%clk 0:02:50]}  Na5 {[%clk 0:02:31]} 13. d3 {[%clk 0:02:45]}  Rd8 {[%clk 0:02:30]} 14. g4 {[%clk 0:02:34]}  Bxg2 {[%clk 0:02:28]} 15. Qxg2 {[%clk 0:02:35]}  Qc6 {[%clk 0:02:28]} 16. g5 {[%clk 0:02:25]}  Ne8 {[%clk 0:02:17]} 17. Nc3 {[%clk 0:02:18]}  Qxg2+ {[%clk 0:02:09]} 18. Kxg2 {[%clk 0:02:18]}  Nc6 {[%clk 0:02:09]} 19. Kf3 {[%clk 0:02:11]}  Nd6 {[%clk 0:02:04]} 20. Ke2 {[%clk 0:02:09]}  Nf5 {[%clk 0:02:03]} 21. Nf3 {[%clk 0:02:05]}  a6 {[%clk 0:01:51]} 22. Rfd1 {[%clk 0:01:55]}  Rab8 {[%clk 0:01:41]} 23. a4 {[%clk 0:01:53]}  Rb7 {[%clk 0:01:38]} 24. Rab1 {[%clk 0:01:49]}  h6 {[%clk 0:01:22]} 25. h4 {[%clk 0:01:26]}  h5 {[%clk 0:01:18]} 26. Ba3 {[%clk 0:01:24]}  a5 {[%clk 0:01:10]} 27. Ne4 {[%clk 0:01:12]}  Nb4 {[%clk 0:01:06]} 28. Rd2 {[%clk 0:01:08]}  Rbd7 {[%clk 0:01:01]} 29. Rbd1 {[%clk 0:01:02]}  Nc6 {[%clk 0:00:54]} 30. Bb2 {[%clk 0:00:59]}  Nb4 {[%clk 0:00:43]} 31. Bc3 {[%clk 0:00:54]}  Nc6 {[%clk 0:00:37]} 32. Ne5 {[%clk 0:00:43]}  Rc7 {[%clk 0:00:14]} 33. Nxc6 {[%clk 0:00:42]}  Rxc6 {[%clk 0:00:15]} 34. Rb2 {[%clk 0:00:42]}  Rd7 {[%clk 0:00:11]} 35. Rdb1 {[%clk 0:00:34]}  Bd8 {[%clk 0:00:11]} 36. Be1 {[%clk 0:00:33]}  Kh7 {[%clk 0:00:10]} 37. Bf2 {[%clk 0:00:30]}  Rc8 {[%clk 0:00:10]} 38. Nc3 {[%clk 0:00:25]}  Bc7 {[%clk 0:00:10]} 39. Nb5 {[%clk 0:00:19]}  Bb8 {[%clk 0:00:09]} 40. Nc3 {[%clk 0:00:14]}  Bc7 {[%clk 0:00:09]} 41. Rb3 {[%clk 0:00:13]}  Rcd8 {[%clk 0:00:08]} 42. Ne4 {[%clk 0:00:12]}  Ne7 {[%clk 0:00:08]} 43. Ng3 {[%clk 0:00:09]}  Kg6 {[%clk 0:00:06]} 44. Ne4 {[%clk 0:00:09]}  Nc6 {[%clk 0:00:06]} 45. Be1 {[%clk 0:00:08]}  Ne7 {[%clk 0:00:04]} 46. Ng3 {[%clk 0:00:05]}  Nc6 {[%clk 0:00:04]} 47. Rd1 {[%clk 0:00:04]}  f6 {[%clk 0:00:02]} 48. Ne4 {[%clk 0:00:03]}  e5 {[%clk 0:00:02]} 49. gxf6 {[%clk 0:00:01]}  gxf6 {[%clk 0:00:02]} 0-1


[Site "https://www.chess.com"]

[Event "Titled Tuesday Blitz November 15 Late 2022"]
[White "Espinosa, Pedro"]
[Black "Melikhov, Evgeny V."]
[WhiteFideId "30921066"]
[BlackFideId "4122046"]
[WhiteElo "2016"]
[BlackElo "2169"]
[Result "1/2-1/2"]
[Round "07"]
[TimeControl "180+1"]
[Date "2022.11.16"]
[WhiteClock "0:00:17"]
[BlackClock "0:00:19"]

1. d4 {[%clk 0:03:00]}  Nf6 {[%clk 0:02:59]} 2. c4 {[%clk 0:03:00]}  e6 {[%clk 0:02:59]} 3. Nf3 {[%clk 0:03:00]}  d5 {[%clk 0:02:59]} 4. Nc3 {[%clk 0:03:00]}  Bb4 {[%clk 0:02:58]} 5. cxd5 {[%clk 0:03:00]}  exd5 {[%clk 0:02:58]} 6. Bg5 {[%clk 0:02:59]}  h6 {[%clk 0:02:57]} 7. Bh4 {[%clk 0:02:59]}  c5 {[%clk 0:02:54]} 8. dxc5 {[%clk 0:02:56]}  g5 {[%clk 0:02:47]} 9. Bg3 {[%clk 0:02:56]}  Qa5 {[%clk 0:02:47]} 10. Be5 {[%clk 0:02:55]}  Nbd7 {[%clk 0:02:46]} 11. Bd4 {[%clk 0:02:19]}  O-O {[%clk 0:02:12]} 12. a3 {[%clk 0:02:11]}  Bxc5 {[%clk 0:02:10]} 13. b4 {[%clk 0:02:05]}  Bxd4 {[%clk 0:02:01]} 14. Qxd4 {[%clk 0:01:44]}  Qb6 {[%clk 0:01:54]} 15. e3 {[%clk 0:01:40]}  Qxd4 {[%clk 0:01:51]} 16. Nxd4 {[%clk 0:01:40]}  Ne5 {[%clk 0:01:42]} 17. Be2 {[%clk 0:01:34]}  Be6 {[%clk 0:01:40]} 18. O-O {[%clk 0:01:33]}  Rfc8 {[%clk 0:01:36]} 19. Rac1 {[%clk 0:01:30]}  a6 {[%clk 0:01:23]} 20. Na4 {[%clk 0:01:25]}  Rxc1 {[%clk 0:01:20]} 21. Rxc1 {[%clk 0:01:23]}  Rc8 {[%clk 0:01:20]} 22. Rxc8+ {[%clk 0:01:18]}  Bxc8 {[%clk 0:01:19]} 23. Kf1 {[%clk 0:01:13]}  b5 {[%clk 0:01:06]} 24. Nc5 {[%clk 0:01:05]}  Nc4 {[%clk 0:01:03]} 25. Bxc4 {[%clk 0:01:01]}  dxc4 {[%clk 0:01:03]} 26. Ke2 {[%clk 0:00:59]}  Kf8 {[%clk 0:00:50]} 27. Nc6 {[%clk 0:00:49]}  Nd7 {[%clk 0:00:47]} 28. Nxd7+ {[%clk 0:00:41]}  Bxd7 {[%clk 0:00:47]} 29. Nd4 {[%clk 0:00:41]}  Ke7 {[%clk 0:00:44]} 30. Kd2 {[%clk 0:00:41]}  Kd6 {[%clk 0:00:36]} 31. Kc3 {[%clk 0:00:36]}  Kd5 {[%clk 0:00:29]} 32. f3 {[%clk 0:00:22]}  f5 {[%clk 0:00:29]} 33. Ne2 {[%clk 0:00:22]}  Ke5 {[%clk 0:00:26]} 34. Kd2 {[%clk 0:00:21]}  Kd5 {[%clk 0:00:25]} 35. g3 {[%clk 0:00:19]}  Ke5 {[%clk 0:00:21]} 36. Nc3 {[%clk 0:00:19]}  Bc6 {[%clk 0:00:20]} 37. Ke2 {[%clk 0:00:19]}  Bb7 {[%clk 0:00:20]} 38. Kf2 {[%clk 0:00:18]}  Bc6 {[%clk 0:00:20]} 39. Ke2 {[%clk 0:00:19]}  Kd6 {[%clk 0:00:19]} 40. Nd1 {[%clk 0:00:17]}  Ke5 {[%clk 0:00:19]} 41. Nc3 {[%clk 0:00:17]} 1/2-1/2


[Site "https://www.chess.com"]

[Event "Titled Tuesday Blitz November 15 Late 2022"]
[White "Estrada Nieto, Julian"]
[Black "Kopylov, Alexander A."]
[WhiteFideId "5101018"]
[BlackFideId "4164857"]
[WhiteElo "2541"]
[BlackElo "2759"]
[Result "1-0"]
[Round "07"]
[TimeControl "180+1"]
[Date "2022.11.16"]
[WhiteClock "0:01:46"]
[BlackClock "0:01:51"]

1. e4 {[%clk 0:03:00]}  e5 {[%clk 0:02:59]} 2. Nf3 {[%clk 0:03:01]}  Nc6 {[%clk 0:03:00]} 3. Bb5 {[%clk 0:03:01]}  a6 {[%clk 0:03:00]} 4. Ba4 {[%clk 0:03:01]}  d6 {[%clk 0:03:00]} 5. Bxc6+ {[%clk 0:02:59]}  bxc6 {[%clk 0:03:00]} 6. d4 {[%clk 0:03:00]}  exd4 {[%clk 0:02:57]} 7. Nxd4 {[%clk 0:02:48]}  c5 {[%clk 0:02:54]} 8. Ne2 {[%clk 0:02:47]}  Nf6 {[%clk 0:02:53]} 9. Nbc3 {[%clk 0:02:47]}  Be7 {[%clk 0:02:53]} 10. O-O {[%clk 0:02:47]}  O-O {[%clk 0:02:53]} 11. b3 {[%clk 0:02:44]}  Bb7 {[%clk 0:02:53]} 12. Ng3 {[%clk 0:02:40]}  Re8 {[%clk 0:02:51]} 13. Bb2 {[%clk 0:02:39]}  Bf8 {[%clk 0:02:51]} 14. Re1 {[%clk 0:02:26]}  Qd7 {[%clk 0:02:44]} 15. f3 {[%clk 0:02:12]}  a5 {[%clk 0:02:42]} 16. Qd2 {[%clk 0:02:10]}  c4 {[%clk 0:02:36]} 17. Nf5 {[%clk 0:01:58]}  h6 {[%clk 0:02:07]} 18. Qf4 {[%clk 0:01:50]}  Nh5 {[%clk 0:01:51]} 19. Qg4 {[%clk 0:01:48]}  g6 {[%clk 0:01:51]} 20. Nxh6+ {[%clk 0:01:46]} 1-0


[Site "https://www.chess.com"]

[Event "Titled Tuesday Blitz November 15 Late 2022"]
[White "Firouzja, Alireza"]
[Black "Fedoseev, Vladimir"]
[WhiteFideId "12573981"]
[BlackFideId "24130737"]
[WhiteElo "2903"]
[BlackElo "2726"]
[Result "0-1"]
[Round "07"]
[TimeControl "180+1"]
[Date "2022.11.15"]
[WhiteClock "0:00:02"]
[BlackClock "0:00:17"]

1. e4 {[%clk 0:02:53]}  c6 {[%clk 0:02:59]} 2. d4 {[%clk 0:02:51]}  d5 {[%clk 0:02:59]} 3. e5 {[%clk 0:02:51]}  Bf5 {[%clk 0:02:58]} 4. Nf3 {[%clk 0:02:52]}  e6 {[%clk 0:02:57]} 5. Be2 {[%clk 0:02:53]}  Nd7 {[%clk 0:02:53]} 6. O-O {[%clk 0:02:53]}  f6 {[%clk 0:02:53]} 7. c4 {[%clk 0:02:44]}  fxe5 {[%clk 0:02:52]} 8. dxe5 {[%clk 0:02:45]}  Bc5 {[%clk 0:02:51]} 9. Nc3 {[%clk 0:02:43]}  Ne7 {[%clk 0:02:48]} 10. Na4 {[%clk 0:02:44]}  O-O {[%clk 0:02:42]} 11. Nxc5 {[%clk 0:02:43]}  Nxc5 {[%clk 0:02:42]} 12. Be3 {[%clk 0:02:44]}  Nd7 {[%clk 0:02:40]} 13. Rc1 {[%clk 0:02:26]}  Rc8 {[%clk 0:02:18]} 14. h3 {[%clk 0:02:21]}  Qc7 {[%clk 0:02:15]} 15. Bg5 {[%clk 0:01:24]}  Rfe8 {[%clk 0:02:07]} 16. Re1 {[%clk 0:01:15]}  Bg6 {[%clk 0:01:52]} 17. Nd4 {[%clk 0:01:11]}  Nf5 {[%clk 0:01:47]} 18. cxd5 {[%clk 0:01:11]}  Nxd4 {[%clk 0:01:38]} 19. Qxd4 {[%clk 0:01:12]}  exd5 {[%clk 0:01:37]} 20. Bg4 {[%clk 0:01:11]}  h5 {[%clk 0:01:33]} 21. Bf3 {[%clk 0:00:57]}  Qb6 {[%clk 0:00:56]} 22. Qf4 {[%clk 0:00:51]}  Nf8 {[%clk 0:00:52]} 23. Qg3 {[%clk 0:00:46]}  Qxb2 {[%clk 0:00:49]} 24. Bf4 {[%clk 0:00:39]}  Rcd8 {[%clk 0:00:43]} 25. Rcd1 {[%clk 0:00:25]}  Re6 {[%clk 0:00:41]} 26. Qh4 {[%clk 0:00:20]}  Rde8 {[%clk 0:00:37]} 27. g4 {[%clk 0:00:19]}  hxg4 {[%clk 0:00:30]} 28. Bxg4 {[%clk 0:00:19]}  Qxa2 {[%clk 0:00:29]} 29. Bxe6+ {[%clk 0:00:17]}  Nxe6 {[%clk 0:00:29]} 30. Bg3 {[%clk 0:00:16]}  Qc2 {[%clk 0:00:23]} 31. Qg4 {[%clk 0:00:11]}  Bf5 {[%clk 0:00:21]} 32. Qh5 {[%clk 0:00:10]}  Rf8 {[%clk 0:00:21]} 33. Ra1 {[%clk 0:00:05]}  a6 {[%clk 0:00:20]} 34. Re3 {[%clk 0:00:01]}  d4 {[%clk 0:00:19]} 35. Rf3 {[%clk 0:00:02]}  Qe4 {[%clk 0:00:17]} 0-1


[Site "https://www.chess.com"]